[Event "Late-Titled-Tuesday-Blitz-May-07-2024"]
[Site "Chess.com"]
[Date "2024.05.07"]
[Round "6"]
[White "GMKrikor"]
[Black "Tibmat"]
[Result "1-0"]
[WhiteElo "2840"]
[BlackElo "2678"]
[TimeControl "180+1"]
[EndTime "15:06:24 PDT"]
[Termination "GMKrikor won on time"]

1. Nf3 {[%clk 0:03:00.9]} 1... Nf6 {[%clk 0:02:58.1]} 2. c4 {[%clk 0:03:00.1]}
2... b6 {[%clk 0:02:55.5]} 3. Nc3 {[%clk 0:02:58.8]} 3... Bb7 {[%clk 0:02:55.9]}
4. d4 {[%clk 0:02:59.5]} 4... e6 {[%clk 0:02:55.4]} 5. e3 {[%clk 0:03:00.1]}
5... d5 {[%clk 0:02:53.3]} 6. cxd5 {[%clk 0:02:59.4]} 6... exd5 {[%clk
0:02:52.1]} 7. Bb5+ {[%clk 0:02:59.8]} 7... c6 {[%clk 0:02:52]} 8. Bd3 {[%clk
0:03:00.3]} 8... Bd6 {[%clk 0:02:52.4]} 9. O-O {[%clk 0:02:56.2]} 9... O-O
{[%clk 0:02:51.1]} 10. e4 {[%clk 0:02:56.8]} 10... dxe4 {[%clk 0:02:48.6]} 11.
Nxe4 {[%clk 0:02:57.7]} 11... Nxe4 {[%clk 0:02:45.5]} 12. Bxe4 {[%clk
0:02:58.6]} 12... Nd7 {[%clk 0:02:45.6]} 13. Bg5 {[%clk 0:02:44.5]} 13... Be7
{[%clk 0:02:17]} 14. Bxe7 {[%clk 0:02:25.3]} 14... Qxe7 {[%clk 0:02:17.9]} 15.
Re1 {[%clk 0:02:20.7]} 15... Qd6 {[%clk 0:02:18.1]} 16. Ne5 {[%clk 0:02:12.4]}
16... Nf6 {[%clk 0:01:54.2]} 17. Bf3 {[%clk 0:02:10.3]} 17... Rad8 {[%clk
0:01:51.5]} 18. Qa4 {[%clk 0:01:55.8]} 18... Qxd4 {[%clk 0:01:12.3]} 19. Qxa7
{[%clk 0:01:55.6]} 19... Ba8 {[%clk 0:01:04.4]} 20. Rad1 {[%clk 0:01:05.9]}
20... Qxb2 {[%clk 0:01:04.4]} 21. Rxd8 {[%clk 0:01:03.1]} 21... Rxd8 {[%clk
0:01:05.3]} 22. Qxf7+ {[%clk 0:01:01.6]} 22... Kh8 {[%clk 0:01:05.9]} 23. Qe6
{[%clk 0:00:42.2]} 23... Rf8 {[%clk 0:00:16.6]} 24. Nf7+ {[%clk 0:00:41.5]}
24... Kg8 {[%clk 0:00:17.1]} 25. Ng5+ {[%clk 0:00:20.7]} 25... Kh8 {[%clk
0:00:17.3]} 26. Qe7 {[%clk 0:00:20.6]} 26... Rb8 {[%clk 0:00:05.7]} 27. Qc7
{[%clk 0:00:17.8]} 27... Rf8 {[%clk 0:00:04.6]} 28. Ne6 {[%clk 0:00:13.8]} 28...
Rg8 {[%clk 0:00:04.7]} 29. Nd8 {[%clk 0:00:09.1]} 29... Rf8 {[%clk 0:00:02.4]}
30. Qe7 {[%clk 0:00:07]} 1-0

[Event "Late-Titled-Tuesday-Blitz-May-07-2024"]
[Site "Chess.com"]
[Date "2024.05.07"]
[Round "6"]
[White "ChessWarrior7197"]
[Black "deathadder96"]
[Result "1-0"]
[WhiteElo "3139"]
[BlackElo "2851"]
[TimeControl "180+1"]
[EndTime "15:06:25 PDT"]
[Termination "ChessWarrior7197 won by checkmate"]

1. e4 {[%clk 0:03:00.9]} 1... e6 {[%clk 0:02:59.9]} 2. d4 {[%clk 0:03:00.3]}
2... d5 {[%clk 0:03:00.6]} 3. e5 {[%clk 0:03:00]} 3... c5 {[%clk 0:03:00.7]} 4.
Nf3 {[%clk 0:03:00.7]} 4... Nc6 {[%clk 0:03:00.2]} 5. Bd3 {[%clk 0:03:01.4]}
5... Bd7 {[%clk 0:02:59.6]} 6. O-O {[%clk 0:03:01.8]} 6... cxd4 {[%clk
0:02:50.6]} 7. Nbd2 {[%clk 0:03:02.1]} 7... Nge7 {[%clk 0:02:49.6]} 8. Nb3
{[%clk 0:03:01.6]} 8... Nf5 {[%clk 0:02:45.4]} 9. Bxf5 {[%clk 0:02:58.7]} 9...
exf5 {[%clk 0:02:46.3]} 10. Nbxd4 {[%clk 0:02:59.4]} 10... Be7 {[%clk
0:02:44.9]} 11. Qd3 {[%clk 0:02:55.7]} 11... Nxd4 {[%clk 0:02:41.6]} 12. Nxd4
{[%clk 0:02:55.8]} 12... Qc8 {[%clk 0:02:40]} 13. Qg3 {[%clk 0:02:51.9]} 13...
g5 {[%clk 0:02:25.4]} 14. Bd2 {[%clk 0:02:25.4]} 14... Qc4 {[%clk 0:02:10.7]}
15. e6 {[%clk 0:02:12.5]} 15... fxe6 {[%clk 0:02:11]} 16. Qe5 {[%clk 0:02:11.6]}
16... Kf7 {[%clk 0:02:11]} 17. Nf3 {[%clk 0:01:51.8]} 17... Rhg8 {[%clk
0:01:46.3]} 18. Rfe1 {[%clk 0:01:50.2]} 18... g4 {[%clk 0:01:31.6]} 19. Nd4
{[%clk 0:01:48.2]} 19... Rg6 {[%clk 0:01:30]} 20. Nxf5 {[%clk 0:01:46.7]} 20...
Bf8 {[%clk 0:01:28.1]} 21. Nd6+ {[%clk 0:01:41.6]} 21... Bxd6 {[%clk 0:01:28]}
22. Qxd6 {[%clk 0:01:42.5]} 22... Qc6 {[%clk 0:01:26.7]} 23. Qf4+ {[%clk
0:01:42.6]} 23... Kg8 {[%clk 0:01:27]} 24. Bc3 {[%clk 0:01:43.2]} 24... Rf8
{[%clk 0:00:59.2]} 25. Qe5 {[%clk 0:01:43.2]} 25... Kf7 {[%clk 0:00:59.9]} 26.
Rad1 {[%clk 0:01:43.1]} 26... Rc8 {[%clk 0:00:22.7]} 27. Rd4 {[%clk 0:01:42.9]}
27... Rcg8 {[%clk 0:00:06.1]} 28. Qh5 {[%clk 0:01:15.9]} 28... Ke8 {[%clk
0:00:05.9]} 29. Rxd5 {[%clk 0:01:15.9]} 29... Kd8 {[%clk 0:00:05.6]} 30. Rc5
{[%clk 0:01:14.2]} 30... Qd6 {[%clk 0:00:04.9]} 31. Qh4+ {[%clk 0:01:06.4]}
31... Ke8 {[%clk 0:00:04.9]} 32. Bb4 {[%clk 0:01:01.8]} 32... Bc6 {[%clk
0:00:04.1]} 33. Rxc6 {[%clk 0:00:57.8]} 33... Qxb4 {[%clk 0:00:04.4]} 34. Rcxe6+
{[%clk 0:00:54]} 34... Rxe6 {[%clk 0:00:04.1]} 35. Rxe6+ {[%clk 0:00:54.6]}
35... Kd7 {[%clk 0:00:05]} 36. Re3 {[%clk 0:00:49.1]} 36... Qxb2 {[%clk
0:00:03.7]} 37. Qxh7+ {[%clk 0:00:49.2]} 37... Rg7 {[%clk 0:00:04.2]} 38. Qf5+
{[%clk 0:00:47.9]} 38... Kc7 {[%clk 0:00:04.6]} 39. Qc5+ {[%clk 0:00:46]} 39...
Kd7 {[%clk 0:00:04.6]} 40. Rd3+ {[%clk 0:00:45.4]} 40... Ke8 {[%clk 0:00:03.9]}
41. Qc8+ {[%clk 0:00:43.8]} 41... Kf7 {[%clk 0:00:04.3]} 42. Qf5+ {[%clk
0:00:43.8]} 42... Ke8 {[%clk 0:00:03.9]} 43. Qe6+ {[%clk 0:00:44]} 43... Re7
{[%clk 0:00:03.9]} 44. Qg8# {[%clk 0:00:44.4]} 1-0

[Event "Late-Titled-Tuesday-Blitz-May-07-2024"]
[Site "Chess.com"]
[Date "2024.05.07"]
[Round "6"]
[White "GrotBchess"]
[Black "Godzillator"]
[Result "1-0"]
[WhiteElo "2519"]
[BlackElo "2346"]
[TimeControl "180+1"]
[EndTime "15:06:28 PDT"]
[Termination "GrotBchess won by resignation"]

1. e4 {[%clk 0:03:00.9]} 1... d5 {[%clk 0:02:59.9]} 2. exd5 {[%clk 0:02:59.7]}
2... Qxd5 {[%clk 0:03:00.8]} 3. Nf3 {[%clk 0:02:58.8]} 3... c6 {[%clk
0:02:59.1]} 4. d4 {[%clk 0:02:56.9]} 4... Nf6 {[%clk 0:02:58.5]} 5. c3 {[%clk
0:02:57.2]} 5... Bg4 {[%clk 0:02:57.8]} 6. Be2 {[%clk 0:02:57.6]} 6... e6 {[%clk
0:02:57.3]} 7. h3 {[%clk 0:02:57.8]} 7... Bh5 {[%clk 0:02:56.9]} 8. Nbd2 {[%clk
0:02:54.9]} 8... Be7 {[%clk 0:02:56.4]} 9. Nc4 {[%clk 0:02:54.9]} 9... O-O
{[%clk 0:02:54.7]} 10. Bf4 {[%clk 0:02:55.4]} 10... Bxf3 {[%clk 0:02:50.8]} 11.
gxf3 {[%clk 0:02:35.7]} 11... Nh5 {[%clk 0:02:49.8]} 12. Be3 {[%clk 0:02:25]}
12... Bg5 {[%clk 0:02:48.3]} 13. Ne5 {[%clk 0:02:20]} 13... Bxe3 {[%clk
0:02:46.8]} 14. fxe3 {[%clk 0:02:20.9]} 14... Ng3 {[%clk 0:02:44.7]} 15. Rg1
{[%clk 0:02:20.5]} 15... Nxe2 {[%clk 0:02:44.8]} 16. Qxe2 {[%clk 0:02:21]} 16...
f6 {[%clk 0:02:39.3]} 17. Qg2 {[%clk 0:02:19.6]} 17... g5 {[%clk 0:02:32.4]} 18.
Nd3 {[%clk 0:02:06.1]} 18... Kh8 {[%clk 0:02:30.2]} 19. h4 {[%clk 0:02:04.2]}
19... Rg8 {[%clk 0:02:29.9]} 20. Nf4 {[%clk 0:02:00.3]} 20... Qc4 {[%clk
0:02:09.1]} 21. hxg5 {[%clk 0:01:58.2]} 21... Rxg5 {[%clk 0:02:07.8]} 22. Qh2
{[%clk 0:01:57.9]} 22... Rxg1+ {[%clk 0:02:05.6]} 23. Qxg1 {[%clk 0:01:58.8]}
23... Nd7 {[%clk 0:02:05]} 24. Kd2 {[%clk 0:01:55.6]} 24... Rg8 {[%clk
0:02:03.4]} 25. Qh2 {[%clk 0:01:55]} 25... e5 {[%clk 0:01:59.4]} 26. Nh5 {[%clk
0:01:48.5]} 26... exd4 {[%clk 0:01:57.5]} 27. exd4 {[%clk 0:01:47.6]} 27... Qb5
{[%clk 0:01:53.3]} 28. b4 {[%clk 0:01:20.1]} 28... Nb6 {[%clk 0:01:44.1]} 29.
Rh1 {[%clk 0:01:03.4]} 29... Nc4+ {[%clk 0:01:42.9]} 30. Kc2 {[%clk 0:01:02.5]}
30... Qf5+ {[%clk 0:01:42.2]} 31. Kb3 {[%clk 0:00:54.5]} 31... Rf8 {[%clk
0:01:03]} 32. Kxc4 {[%clk 0:00:41.9]} 32... Qd5+ {[%clk 0:01:03]} 33. Kd3 {[%clk
0:00:41.9]} 33... Qxf3+ {[%clk 0:01:03.2]} 34. Kc2 {[%clk 0:00:41.8]} 34... a5
{[%clk 0:01:01.8]} 35. Nf4 {[%clk 0:00:37.2]} 35... Qe4+ {[%clk 0:01:00.7]} 36.
Kb2 {[%clk 0:00:37.1]} 36... axb4 {[%clk 0:01:00.1]} 37. Ne2 {[%clk 0:00:25.5]}
37... Re8 {[%clk 0:00:51.3]} 38. Ka1 {[%clk 0:00:18.4]} 38... bxc3 {[%clk
0:00:45.4]} 39. Nxc3 {[%clk 0:00:19.3]} 39... Qd3 {[%clk 0:00:45.6]} 40. Qb2
{[%clk 0:00:15.7]} 40... b5 {[%clk 0:00:32.3]} 41. Rd1 {[%clk 0:00:14]} 41...
Qc4 {[%clk 0:00:30.4]} 42. d5 {[%clk 0:00:13.7]} 42... b4 {[%clk 0:00:26.8]} 43.
Nb1 {[%clk 0:00:13.5]} 43... Re2 {[%clk 0:00:25.9]} 44. Qxf6+ {[%clk 0:00:12.8]}
44... Kg8 {[%clk 0:00:25]} 45. Rg1+ {[%clk 0:00:12.8]} 1-0

[Event "Late-Titled-Tuesday-Blitz-May-07-2024"]
[Site "Chess.com"]
[Date "2024.05.07"]
[Round "6"]
[White "finec2"]
[Black "Akhayan"]
[Result "0-1"]
[WhiteElo "2278"]
[BlackElo "2418"]
[TimeControl "180+1"]
[EndTime "15:06:33 PDT"]
[Termination "Akhayan won on time"]

1. e4 {[%clk 0:02:59.6]} 1... e5 {[%clk 0:02:59.2]} 2. Nf3 {[%clk 0:02:59.5]}
2... Nc6 {[%clk 0:02:59.2]} 3. Bc4 {[%clk 0:02:59.2]} 3... Nf6 {[%clk
0:02:58.6]} 4. d3 {[%clk 0:02:59.3]} 4... Bc5 {[%clk 0:02:58.2]} 5. c3 {[%clk
0:02:59]} 5... O-O {[%clk 0:02:58.1]} 6. O-O {[%clk 0:02:58.8]} 6... d5 {[%clk
0:02:58.7]} 7. exd5 {[%clk 0:02:58.5]} 7... Nxd5 {[%clk 0:02:59.4]} 8. Re1
{[%clk 0:02:58.1]} 8... Nb6 {[%clk 0:02:54.5]} 9. Bb5 {[%clk 0:02:54.1]} 9...
Bg4 {[%clk 0:02:49.7]} 10. h3 {[%clk 0:02:51.5]} 10... Bh5 {[%clk 0:02:47.1]}
11. g4 {[%clk 0:02:39.2]} 11... Bg6 {[%clk 0:02:46.1]} 12. Bxc6 {[%clk 0:02:39]}
12... bxc6 {[%clk 0:02:45.8]} 13. Nxe5 {[%clk 0:02:38.7]} 13... Bd6 {[%clk
0:02:29]} 14. Bf4 {[%clk 0:01:54.6]} 14... Qf6 {[%clk 0:02:01.7]} 15. Bg3 {[%clk
0:01:50.3]} 15... Rae8 {[%clk 0:01:58.3]} 16. d4 {[%clk 0:01:49.5]} 16... Nd5
{[%clk 0:01:37.1]} 17. Nd2 {[%clk 0:01:29]} 17... Nf4 {[%clk 0:01:14.3]} 18. Kh2
{[%clk 0:01:03.4]} 18... Nd3 {[%clk 0:01:06.1]} 19. Nxd3 {[%clk 0:01:01.6]}
19... Bxd3 {[%clk 0:01:05.5]} 20. Qf3 {[%clk 0:00:56.4]} 20... Qg6 {[%clk
0:00:54.9]} 21. Nf1 {[%clk 0:00:37.7]} 21... Be4 {[%clk 0:00:49.4]} 22. Qd1
{[%clk 0:00:31.3]} 22... Qf6 {[%clk 0:00:43.7]} 23. Qd2 {[%clk 0:00:28]} 23...
Qf3 {[%clk 0:00:43.3]} 24. Ne3 {[%clk 0:00:21]} 24... h5 {[%clk 0:00:32.6]} 25.
Qe2 {[%clk 0:00:15.3]} 25... Qf6 {[%clk 0:00:28.2]} 26. gxh5 {[%clk 0:00:10.4]}
26... Re7 {[%clk 0:00:25.1]} 27. Ng4 {[%clk 0:00:09.3]} 27... Qg5 {[%clk
0:00:20.3]} 28. Qe3 {[%clk 0:00:08.5]} 28... Qxh5 {[%clk 0:00:16.8]} 29. Qd2
{[%clk 0:00:06.5]} 29... Rfe8 {[%clk 0:00:16.3]} 30. Re3 {[%clk 0:00:05.6]}
30... Qf5 {[%clk 0:00:15.9]} 31. Rae1 {[%clk 0:00:04.9]} 31... Bd5 {[%clk
0:00:15.3]} 32. Rxe7 {[%clk 0:00:04.5]} 32... Rxe7 {[%clk 0:00:15.7]} 33. Rxe7
{[%clk 0:00:04.7]} 33... Bxe7 {[%clk 0:00:16.4]} 34. Qf4 {[%clk 0:00:04.4]}
34... Qe6 {[%clk 0:00:14]} 35. Qxc7 {[%clk 0:00:04.1]} 35... Qe4 {[%clk
0:00:13.7]} 0-1

[Event "Late-Titled-Tuesday-Blitz-May-07-2024"]
[Site "Chess.com"]
[Date "2024.05.07"]
[Round "6"]
[White "mbojan"]
[Black "chenxiaoyuer"]
[Result "0-1"]
[WhiteElo "2890"]
[BlackElo "2795"]
[TimeControl "180+1"]
[EndTime "15:06:34 PDT"]
[Termination "chenxiaoyuer won by checkmate"]

1. e4 {[%clk 0:03:00.9]} 1... c5 {[%clk 0:02:59.6]} 2. Nf3 {[%clk 0:03:01.2]}
2... d6 {[%clk 0:03:00]} 3. d4 {[%clk 0:03:01.6]} 3... cxd4 {[%clk 0:03:00.9]}
4. Nxd4 {[%clk 0:03:02.4]} 4... Nf6 {[%clk 0:03:01.6]} 5. Nc3 {[%clk 0:03:03]}
5... Nc6 {[%clk 0:03:02.3]} 6. Bg5 {[%clk 0:03:02.9]} 6... e6 {[%clk 0:03:01.2]}
7. Qd2 {[%clk 0:03:03.2]} 7... Qb6 {[%clk 0:03:01.5]} 8. Nb3 {[%clk 0:02:59.1]}
8... Be7 {[%clk 0:03:00.4]} 9. O-O-O {[%clk 0:02:56.9]} 9... O-O {[%clk
0:03:00.3]} 10. f3 {[%clk 0:02:49.3]} 10... Rd8 {[%clk 0:02:59.9]} 11. Be3
{[%clk 0:02:45.4]} 11... Qc7 {[%clk 0:02:59.4]} 12. Bd3 {[%clk 0:02:36.6]} 12...
d5 {[%clk 0:02:57.8]} 13. exd5 {[%clk 0:02:31.2]} 13... Nxd5 {[%clk 0:02:58.7]}
14. Nxd5 {[%clk 0:02:28.2]} 14... Rxd5 {[%clk 0:02:59.6]} 15. Qe2 {[%clk
0:01:53.6]} 15... Nb4 {[%clk 0:02:46.9]} 16. Kb1 {[%clk 0:01:53.7]} 16... a5
{[%clk 0:02:19.9]} 17. a3 {[%clk 0:01:31.2]} 17... a4 {[%clk 0:02:04.3]} 18. Nc1
{[%clk 0:01:30.4]} 18... Nxd3 {[%clk 0:02:02.8]} 19. Rxd3 {[%clk 0:01:30.1]}
19... Rxd3 {[%clk 0:01:59.7]} 20. Nxd3 {[%clk 0:01:30.2]} 20... Bd7 {[%clk
0:02:00.1]} 21. Bf4 {[%clk 0:01:27.2]} 21... Qc4 {[%clk 0:01:58.1]} 22. Rd1
{[%clk 0:01:18.9]} 22... Bc6 {[%clk 0:01:45.8]} 23. Be3 {[%clk 0:00:55.3]} 23...
Bd5 {[%clk 0:01:40.8]} 24. Nc1 {[%clk 0:00:55.6]} 24... Qc7 {[%clk 0:01:38.8]}
25. Na2 {[%clk 0:00:51.6]} 25... Bc4 {[%clk 0:01:34.2]} 26. Qf2 {[%clk
0:00:43.8]} 26... Rd8 {[%clk 0:01:33]} 27. Rxd8+ {[%clk 0:00:42.3]} 27... Qxd8
{[%clk 0:01:33.9]} 28. Nc1 {[%clk 0:00:42.2]} 28... Bf6 {[%clk 0:01:28.3]} 29.
h3 {[%clk 0:00:39.5]} 29... Qd5 {[%clk 0:01:23.6]} 30. c3 {[%clk 0:00:29.5]}
30... Qd1 {[%clk 0:01:18.7]} 31. h4 {[%clk 0:00:20.4]} 31... h5 {[%clk
0:01:07.7]} 32. g3 {[%clk 0:00:16.5]} 32... Bd5 {[%clk 0:01:06]} 33. f4 {[%clk
0:00:15.7]} 33... Be4+ {[%clk 0:01:05.1]} 34. Ka1 {[%clk 0:00:16.3]} 34... Bf5
{[%clk 0:00:58.8]} 35. Qd2 {[%clk 0:00:15.4]} 35... Qf3 {[%clk 0:00:57.8]} 36.
Qf2 {[%clk 0:00:14.5]} 36... Qe4 {[%clk 0:00:57.9]} 37. Nd3 {[%clk 0:00:06.2]}
37... Qxd3 {[%clk 0:00:57.6]} 38. Qe1 {[%clk 0:00:07.1]} 38... Bg4 {[%clk
0:00:54.7]} 39. Bf2 {[%clk 0:00:04.4]} 39... Qd1+ {[%clk 0:00:54.8]} 40. Qxd1
{[%clk 0:00:04.7]} 40... Bxd1 {[%clk 0:00:55.5]} 41. Kb1 {[%clk 0:00:05.1]}
41... Kh7 {[%clk 0:00:55.9]} 42. Kc1 {[%clk 0:00:05.7]} 42... Bb3 {[%clk
0:00:56.6]} 43. Kd2 {[%clk 0:00:06.1]} 43... Kg6 {[%clk 0:00:57.1]} 44. Ke3
{[%clk 0:00:05.4]} 44... Kf5 {[%clk 0:00:58]} 45. Kf3 {[%clk 0:00:05.6]} 45...
e5 {[%clk 0:00:58]} 46. fxe5 {[%clk 0:00:05.6]} 46... Bxe5 {[%clk 0:00:58.9]}
47. Be3 {[%clk 0:00:05.3]} 47... f6 {[%clk 0:00:59.8]} 48. Bc5 {[%clk
0:00:04.6]} 48... g5 {[%clk 0:01:00.3]} 49. hxg5 {[%clk 0:00:04.7]} 49... fxg5
{[%clk 0:01:01.2]} 50. Be7 {[%clk 0:00:04.9]} 50... Bd5+ {[%clk 0:01:01.6]} 51.
Kf2 {[%clk 0:00:04.8]} 51... Kg4 {[%clk 0:01:02.3]} 52. Ke3 {[%clk 0:00:04.6]}
52... Bxg3 {[%clk 0:01:02.6]} 53. Kd4 {[%clk 0:00:05.2]} 53... Bc6 {[%clk
0:01:03.2]} 54. Kc4 {[%clk 0:00:04.4]} 54... Kf3 {[%clk 0:01:02.4]} 55. b4
{[%clk 0:00:04.9]} 55... axb3 {[%clk 0:01:02.1]} 56. Kxb3 {[%clk 0:00:05.2]}
56... g4 {[%clk 0:01:02.6]} 57. a4 {[%clk 0:00:05.6]} 57... h4 {[%clk
0:01:03.3]} 58. Bxh4 {[%clk 0:00:05.7]} 58... Bxh4 {[%clk 0:01:03.5]} 59. Kb4
{[%clk 0:00:05.5]} 59... Bd8 {[%clk 0:01:04.4]} 60. Kc5 {[%clk 0:00:05.4]} 60...
Ba5 {[%clk 0:01:04.6]} 61. c4 {[%clk 0:00:05.5]} 61... g3 {[%clk 0:01:04.9]} 62.
Kd6 {[%clk 0:00:06.2]} 62... g2 {[%clk 0:01:05.8]} 63. Kc5 {[%clk 0:00:06.2]}
63... g1=Q+ {[%clk 0:01:06.2]} 64. Kd6 {[%clk 0:00:06.6]} 64... Qd4+ {[%clk
0:01:06.3]} 65. Ke6 {[%clk 0:00:07.2]} 65... Qd7+ {[%clk 0:01:06]} 66. Ke5
{[%clk 0:00:07.5]} 66... Bc3# {[%clk 0:01:06.4]} 0-1

[Event "Late-Titled-Tuesday-Blitz-May-07-2024"]
[Site "Chess.com"]
[Date "2024.05.07"]
[Round "6"]
[White "banjadvorovi"]
[Black "kemelgallo"]
[Result "0-1"]
[WhiteElo "2476"]
[BlackElo "2663"]
[TimeControl "180+1"]
[EndTime "15:06:35 PDT"]
[Termination "kemelgallo won by checkmate"]

1. e4 {[%clk 0:03:00.9]} 1... c5 {[%clk 0:02:58]} 2. Nc3 {[%clk 0:02:54.3]} 2...
Nc6 {[%clk 0:02:56.5]} 3. g3 {[%clk 0:02:53.7]} 3... g6 {[%clk 0:02:56.5]} 4.
Bg2 {[%clk 0:02:54.4]} 4... Bg7 {[%clk 0:02:56.4]} 5. Nge2 {[%clk 0:02:55.1]}
5... d6 {[%clk 0:02:56.3]} 6. O-O {[%clk 0:02:55.7]} 6... Nf6 {[%clk 0:02:56.2]}
7. d3 {[%clk 0:02:56.4]} 7... O-O {[%clk 0:02:56]} 8. h3 {[%clk 0:02:57.1]} 8...
Rb8 {[%clk 0:02:56.2]} 9. f4 {[%clk 0:02:57.5]} 9... Bd7 {[%clk 0:02:49.9]} 10.
g4 {[%clk 0:02:57.5]} 10... b5 {[%clk 0:02:49.7]} 11. f5 {[%clk 0:02:54.5]}
11... b4 {[%clk 0:02:48.9]} 12. Nb1 {[%clk 0:02:54.3]} 12... a5 {[%clk
0:02:33.6]} 13. Nd2 {[%clk 0:02:51.6]} 13... Ne5 {[%clk 0:02:28.9]} 14. Nf3
{[%clk 0:02:49.5]} 14... Nxf3+ {[%clk 0:02:12.7]} 15. Bxf3 {[%clk 0:02:50.4]}
15... Qc7 {[%clk 0:02:12.8]} 16. g5 {[%clk 0:02:44.1]} 16... Ne8 {[%clk
0:02:12.4]} 17. Bg4 {[%clk 0:02:44]} 17... Bc6 {[%clk 0:02:09.8]} 18. h4 {[%clk
0:02:38.1]} 18... d5 {[%clk 0:02:09.1]} 19. Bf4 {[%clk 0:02:36.5]} 19... Be5
{[%clk 0:02:09]} 20. fxg6 {[%clk 0:02:24.5]} 20... hxg6 {[%clk 0:02:05.7]} 21.
exd5 {[%clk 0:02:13.8]} 21... Bxd5 {[%clk 0:02:03.6]} 22. Qd2 {[%clk 0:02:13.9]}
22... Ng7 {[%clk 0:01:57.7]} 23. Rae1 {[%clk 0:02:05.9]} 23... Rbd8 {[%clk
0:01:51.9]} 24. Qe3 {[%clk 0:01:54.8]} 24... Bxf4 {[%clk 0:01:45.2]} 25. Nxf4
{[%clk 0:01:55.7]} 25... e6 {[%clk 0:01:44.2]} 26. h5 {[%clk 0:01:48.3]} 26...
gxh5 {[%clk 0:01:33.4]} 27. Nxh5 {[%clk 0:01:36.2]} 27... Nxh5 {[%clk
0:01:25.5]} 28. Bxh5 {[%clk 0:01:37.1]} 28... Bb7 {[%clk 0:01:15.1]} 29. g6
{[%clk 0:01:11.7]} 29... Rd5 {[%clk 0:01:08.8]} 30. gxf7+ {[%clk 0:00:54.5]}
30... Kg7 {[%clk 0:01:08.4]} 31. Bg4 {[%clk 0:00:22.7]} 31... Rxf7 {[%clk
0:00:33.8]} 32. Rxf7+ {[%clk 0:00:21.1]} 32... Qxf7 {[%clk 0:00:34.7]} 33. Qxe6
{[%clk 0:00:16.8]} 33... Rg5 {[%clk 0:00:19.1]} 34. Kh2 {[%clk 0:00:08.9]} 34...
Qf2+ {[%clk 0:00:16.6]} 35. Kh3 {[%clk 0:00:09]} 35... Bg2+ {[%clk 0:00:13.9]}
36. Kh2 {[%clk 0:00:09.3]} 36... Bf1+ {[%clk 0:00:12]} 37. Kh1 {[%clk
0:00:08.1]} 37... Qg2# {[%clk 0:00:12.1]} 0-1

[Event "Late-Titled-Tuesday-Blitz-May-07-2024"]
[Site "Chess.com"]
[Date "2024.05.07"]
[Round "6"]
[White "Bala-Afiada"]
[Black "Mariia89"]
[Result "0-1"]
[WhiteElo "2007"]
[BlackElo "2221"]
[TimeControl "180+1"]
[EndTime "15:06:35 PDT"]
[Termination "Mariia89 won on time"]

1. d4 {[%clk 0:02:56.6]} 1... Nf6 {[%clk 0:02:50.3]} 2. c4 {[%clk 0:02:54.8]}
2... c5 {[%clk 0:02:50.2]} 3. d5 {[%clk 0:02:54.9]} 3... b5 {[%clk 0:02:50.2]}
4. cxb5 {[%clk 0:02:55.3]} 4... a6 {[%clk 0:02:50.9]} 5. b6 {[%clk 0:02:55.9]}
5... d6 {[%clk 0:02:50.8]} 6. Nc3 {[%clk 0:02:56.6]} 6... Qxb6 {[%clk
0:02:50.6]} 7. Nf3 {[%clk 0:02:56.4]} 7... g6 {[%clk 0:02:50.9]} 8. e4 {[%clk
0:02:55.2]} 8... Bg7 {[%clk 0:02:50.9]} 9. Nd2 {[%clk 0:02:55.2]} 9... O-O
{[%clk 0:02:43.5]} 10. Nc4 {[%clk 0:02:54.5]} 10... Qc7 {[%clk 0:02:44.1]} 11.
Be2 {[%clk 0:02:51.7]} 11... Nbd7 {[%clk 0:02:44]} 12. O-O {[%clk 0:02:49.7]}
12... Nb6 {[%clk 0:02:44.5]} 13. Ne3 {[%clk 0:02:24.2]} 13... Bb7 {[%clk
0:02:32.2]} 14. Rb1 {[%clk 0:02:22]} 14... Nfd7 {[%clk 0:02:27.1]} 15. a4 {[%clk
0:02:18.9]} 15... a5 {[%clk 0:02:17.8]} 16. Nb5 {[%clk 0:02:16.7]} 16... Qc8
{[%clk 0:02:17.9]} 17. Qc2 {[%clk 0:02:07.1]} 17... Ba6 {[%clk 0:02:15.5]} 18.
Bd2 {[%clk 0:01:59.7]} 18... Bxb5 {[%clk 0:02:11.4]} 19. Bxb5 {[%clk 0:02:00.6]}
19... Qc7 {[%clk 0:02:01.8]} 20. Bc3 {[%clk 0:01:57]} 20... Ne5 {[%clk
0:01:48.4]} 21. f4 {[%clk 0:01:53]} 21... Ned7 {[%clk 0:01:48.1]} 22. Bxg7
{[%clk 0:01:50]} 22... Kxg7 {[%clk 0:01:49]} 23. Qc3+ {[%clk 0:01:43.2]} 23...
Kg8 {[%clk 0:01:48.9]} 24. Ng4 {[%clk 0:01:38.3]} 24... h5 {[%clk 0:01:42.8]}
25. Nf2 {[%clk 0:01:18.6]} 25... c4 {[%clk 0:01:32.5]} 26. Nh3 {[%clk
0:01:10.4]} 26... Qc5+ {[%clk 0:01:20.1]} 27. Kh1 {[%clk 0:01:10.1]} 27... Qb4
{[%clk 0:01:20.6]} 28. Rf3 {[%clk 0:00:59.8]} 28... Nc5 {[%clk 0:01:14.8]} 29.
e5 {[%clk 0:00:52.4]} 29... Nxd5 {[%clk 0:00:46]} 30. Qd4 {[%clk 0:00:43.2]}
30... Nb6 {[%clk 0:00:33.6]} 31. exd6 {[%clk 0:00:31.4]} 31... exd6 {[%clk
0:00:33.2]} 32. f5 {[%clk 0:00:26.3]} 32... c3 {[%clk 0:00:27.4]} 33. Qf6 {[%clk
0:00:13.6]} 33... Ne4 {[%clk 0:00:23]} 34. Qh4 {[%clk 0:00:09.9]} 34... Nd2
{[%clk 0:00:20.1]} 35. Bd3 {[%clk 0:00:05.6]} 35... Qxh4 {[%clk 0:00:19.1]} 36.
fxg6 {[%clk 0:00:05.1]} 36... fxg6 {[%clk 0:00:18.1]} 0-1